Cogmind - Beta 16 @@@ ROGUE MODE // 2025.12.15 @ 23:47:45 Player: surprisinglarge Result: Self-destructed Performance ------------- Evolutions (1) 500 Regions Visited (3) 600 Robots Destroyed (11) 55 Value Destroyed (242) 242 Prototype IDs (0) 0 Alien Tech Used (0) 0 Bonus (0) 0 TOTAL SCORE: 1397 Bonus ------- None Cogmind --------- Core Integrity 161/400 Matter 145/300 Energy 90/125 System Corruption 0% Temperature Cool (0) Movement Core (150) Ox2 Location -9/Materials Parts ------- > --- POWER (1) -------- Light Ion Engine > --- PROPULSION (3) --- (None) > --- UTILITY (2) ------ Small Storage Unit > --- WEAPON (3) ------- (None) > --- INVENTORY (8) ---- (None) Peak State ------------ > --- POWER ------------ Ion Engine > --- PROPULSION ------- Aluminum Leg Aluminum Leg > --- UTILITY ---------- Small Storage Unit > --- WEAPON ----------- Assault Rifle Light Assault Rifle Light Cannon > --- INVENTORY -------- Light Ion Engine [Rating: 7] Favorites ----------- Power Ion Engine Engine Ion Engine Propulsion Aluminum Leg Leg Aluminum Leg Utility Small Storage Unit Storage Small Storage Unit Weapon Assault Rifle Ballistic Gun Assault Rifle Ballistic Cannon Light Cannon Build | -11 -10 -10 -9 ------- Run | Yrd Mat Min Mat Slots Evolved 2 | . . . 2 Power . | . . . . Propulsion 1 | . . . 1 Utility . | . . . . Weapon 1 | . . . 1 Parts Attached 9 | 6 . 1 2 Power 3 | 1 . 1 1 Engine 3 | 1 . 1 1 Core . | . . . . Reactor . | . . . . Propulsion 2 | 2 . . . Treads . | . . . . Leg 2 | 2 . . . Wheel . | . . . . Hover . | . . . . Flight . | . . . . Utility 1 | 1 . . . Device . | . . . . Storage 1 | 1 . . . Processor . | . . . . Hackware . | . . . . Protection . | . . . . Artifact . | . . . . Weapon 3 | 2 . . 1 Energy Gun . | . . . . Energy Cannon . | . . . . Ballistic Gun 2 | 2 . . . Ballistic Cannon 1 | . . . 1 Launcher . | . . . . Special Weapon . | . . . . Impact Weapon . | . . . . Slashing Weapon . | . . . . Piercing Weapon . | . . . . Special Melee Weapon . | . . . . Unidentified Prototypes . | . . . . Parts Lost 6 | . . . 6 Power 1 | . . . 1 Propulsion 2 | . . . 2 Utility . | . . . . Weapon 3 | . . . 3 Highest Loss Streak 6 | . . . 6 To Critical Strikes . | . . . . Average Backups 1 | . 1 1 1 Power . | . . . 1 Propulsion . | . . . . Utility . | . . . . Weapon . | . . 1 . Tool/Special . | . . . . Unused Backups . | . . . . Power . | . . . . Propulsion . | . . . . Utility . | . . . . Weapon . | . . . . Tool/Special . | . . . . Average Slot Usage (%) 81 | . 85 85 69 Engine 13 | . 14 14 10 Leg 25 | . 28 28 19 Storage 13 | . 14 14 11 Ballistic Gun 25 | . 28 28 17 Ballistic Cannon 2 | . . . 11 Peak Build Rating 7 | 6 6 6 7 Average Rating 5 | 4 6 6 6 On Entrance 4 | . 6 6 6 Avg Prop Armor Cover (%) . | . . . . Naked Turns . | . . . . Heaviest Build 16 | 13 13 13 16 Greatest Support 20 | 20 20 20 20 Greatest Overweight (x) . | . . . . Average Overweight (x) . | . . . . Largest Inventory Capacity 8 | 8 8 8 8 Average Capacity 7 | 6 8 8 8 Most Carried 5 | 5 2 2 1 Average Carried 1 | . 1 1 . Final Capacity 8 | 8 8 8 8 Final Carried 2 | . 2 2 . Class Distribution -------------------- 82% | Mutant 17% | Gunner Dominant Class ---------------- Mutant | -10/Materials Mutant | -10/Mines Gunner | -9/Materials Resources | -11 -10 -10 -9 ----------- Run | Yrd Mat Min Mat Matter Collected 361 | 223 44 83 11 Remotely . | . . . . Salvage Created 246 | . 20 129 97 Parts 22 | . 2 13 7 Haulers Intercepted . | . . . . Recyclers Shooed 1 | . . 1 . Parts Field Recycled . | . . . . Retrieved Matter . | . . . . Parts Self-Destructed . | . . . . Prevented . | . . . . Parts Restored . | . . . . Kills | -11 -10 -10 -9 ------- Run | Yrd Mat Min Mat Combat Hostiles Destroyed 11 | . 1 5 5 Guns 8 | . 1 5 2 Cannons 3 | . . . 3 Classes Destroyed 2 | . 1 1 . Swarmer 7 | . 1 3 3 Grunt 4 | . . 2 2 Best Kill Streak 3 | . 1 3 3 Combat Bots Only 3 | . 1 3 3 Max Kills in Single Turn 1 | . 1 1 1 Gunslinging . | . . . . Exploded . | . . . . Melee . | . . . . Uniques/NPCs Destroyed . | . . . . Combat | -11 -10 -10 -9 -------- Run | Yrd Mat Min Mat Hostile Shots Fired 130 | . 14 28 88 Missed 40 | . 6 8 26 Hits 90 | . 8 20 62 Projectile 90 | . 8 20 62 Critical Strikes 1 | . . . 1 Damage Taken 1074 | . 62 227 785 Core 327 | . 14 74 239 Absorbed by Shields . | . . . . Core Remaining (%) 82 | 100 . 64 . Volleys Fired 48 | . 6 14 28 Largest 3 | . 2 2 3 Hottest 70 | . 40 40 70 Shots Fired 99 | . 12 28 59 Gun 71 | . 12 28 31 Cannon 28 | . . . 28 Launcher . | . . . . Special . | . . . . Kinetic 99 | . 12 28 59 Thermal . | . . . . Explosive . | . . . . Electromagnetic . | . . . . Robot Hit Streak 18 | . 3 5 18 Robot Miss Streak 5 | . 5 2 5 Penetration Max . | . . . . Secondary Targets 1 | . . 1 . Max Gunslinging Chain 1 | . . 1 . Shots Hit Robots 56 | . 4 15 37 Core Hits 17 | . 2 8 7 Critical Kills . | . . . . Critical Parts Destroyed . | . . . . Critical Strikes 1 | . . . 1 Blast 1 | . . . 1 Melee Attacks . | . . . . Impact . | . . . . Slashing . | . . . . Piercing . | . . . . Sneak Attacks . | . . . . Combat Hostiles . | . . . . Follow-up Attacks . | . . . . Damage Inflicted 739 | . 40 183 516 Guns 398 | . 40 183 175 Cannons 341 | . . . 341 Explosions . | . . . . Melee . | . . . . Ramming . | . . . . Kinetic 739 | . 40 183 516 Thermal . | . . . . Explosive . | . . . . Electromagnetic . | . . . . Impact . | . . . . Slashing . | . . . . Piercing . | . . . . Highest Corruption . | . . . . Average Corruption . | . . . . Corruption Purged . | . . . . Corruption Blocked . | . . . . Overload Shots . | . . . . Overflow Damage . | . . . . Projectiles . | . . . . Explosions . | . . . . Melee . | . . . . Knockbacks 5 | . . . 5 Impact . | . . . . Kinetic 5 | . . . 5 Secondary . | . . . . Self-Inflicted Damage . | . . . . Shots . | . . . . Rammed . | . . . . Targets Rammed 1 | . . . 1 Kicked 1 | . . . 1 Crushed . | . . . . Highest Temperature 48 | . . 18 48 Average Temperature 14 | . . 10 16 Received Heat Transfer 402 | . . 72 330 Siege Activations . | . . . . Martial Activations . | . . . . Shielding Activations . | . . . . Robots Disrupted . | . . . . Combat Hostiles . | . . . . Robots Corrupted . | . . . . Combat Hostiles . | . . . . Parts Fried . | . . . . Impact Corruptions . | . . . . Robots Melted . | . . . . Combat Hostiles . | . . . . Parts Melted . | . . . . Heat Transferred . | . . . . Parts Sabotaged . | . . . . Parts Stolen . | . . . . Parts Stripped . | . . . . Power Chain Reactions . | . . . . Alert | -11 -10 -10 -9 ------- Run | Yrd Mat Min Mat Maximum Alert Level . | . . . . Low Security (%) 100 | 100 100 100 100 Level 1 . | . . . . Level 2 . | . . . . Level 3 . | . . . . Level 4 . | . . . . Level 5 . | . . . . High Security . | . . . . Max Security . | . . . . Peak Influence 76 | . 20 60 76 Initial . | . . . . Average 15 | . 2 19 29 Influence Increases 277 | . 21 120 136 Destroy 0b10 Robot/C 220 | . 20 100 100 Destroy Leader 40 | . . 20 20 Disable Machine 15 | . . . 15 Destroy Structure 2 | . 1 . 1 Influence Decreases 267 | . 21 120 126 Time Decay 211 | . 21 120 70 Lost Part 56 | . . . 56 Squads Dispatched 2 | . . . 2 Investigation . | . . . . Extermination . | . . . . Reinforcement 2 | . . . 2 Assault . | . . . . Garrison . | . . . . Intercept . | . . . . Searches Triggered . | . . . . Construction Impeded . | . . . . Haulers Reinforced . | . . . . Active Scanning Responses . | . . . . Cargo Convoy Interrupts . | . . . . Stealth | -11 -10 -10 -9 --------- Run | Yrd Mat Min Mat Distress Signals 5 | . . . 5 Communications Jammed . | . . . . Distress Signals . | . . . . Times Spotted 23 | . 7 4 12 Peak Tracking Total 8 | . 3 3 8 Tactical Retreats . | . . . . Traps | -11 -10 -10 -9 ------- Run | Yrd Mat Min Mat Traps Triggered . | . . . . Indirectly . | . . . . Trap Hack Attempts . | . . . . Triggered . | . . . . Disarmed . | . . . . Reprogrammed . | . . . . Reused . | . . . . Traps Extracted . | . . . . Installed . | . . . . Triggered . | . . . . Machines | -11 -10 -10 -9 ---------- Run | Yrd Mat Min Mat Machines Disabled 1 | . . . 1 Max in Single Turn 1 | . . . 1 Machines Repaired . | . . . . Machines Dismantled . | . . . . Machines Sabotaged . | . . . . Overloaded Fab Kills . | . . . . Hacking | -11 -10 -10 -9 --------- Run | Yrd Mat Min Mat Machines Accessed . | . . . . Terminals . | . . . . Fabricators . | . . . . Repair Stations . | . . . . Recycling Units . | . . . . Scanalyzers . | . . . . Garrison Access . | . . . . Total Hacks . | . . . . Successful . | . . . . Failed . | . . . . Catastrophic . | . . . . Database Lockouts . | . . . . Manual . | . . . . Terminals . | . . . . Fabricators . | . . . . Repair Stations . | . . . . Recycling Units . | . . . . Scanalyzers . | . . . . Garrison Access . | . . . . Terminal Hacks . | . . . . Fabricator Hacks . | . . . . Repair Station Hacks . | . . . . Recycling Unit Hacks . | . . . . Scanalyzer . | . . . . Garrison Access Hacks . | . . . . Unauthorized Hacks . | . . . . Terminals . | . . . . Fabricators . | . . . . Repair Stations . | . . . . Recycling Units . | . . . . Scanalyzers . | . . . . Garrison Access . | . . . . Data Cores Recovered . | . . . . Used . | . . . . Hacking Detections . | . . . . Full Trace Events . | . . . . Feedback Events . | . . . . Feedback Blocked . | . . . . Robot Schematics Acquired . | . . . . Robots Built . | . . . . Authchips . | . . . . Time . | . . . . Total Robot Build Rating . | . . . . Part Schematics Acquired . | . . . . Parts Built . | . . . . Authchips . | . . . . Time . | . . . . Total Part Build Rating . | . . . . Part Studies Acquired . | . . . . Parts Repaired . | . . . . Time . | . . . . Parts Recycled . | . . . . Recycled Matter . | . . . . Retrieved Matter . | . . . . Retrieved Components . | . . . . Parts Scanalyzed . | . . . . Part Schematics Acquired . | . . . . Parts Damaged . | . . . . Bothacking | -11 -10 -10 -9 ------------ Run | Yrd Mat Min Mat Used RIF Installer . | . . . . Robots Hacked . | . . . . Non-combat . | . . . . Combat . | . . . . Robot Hacks Applied . | . . . . Relay Couplers Released . | . . . . Fabnet Peak Effective % . | . . . . Robots Rewired . | . . . . Allies Hacked . | . . . . Hacks Repelled . | . . . . Allies | -11 -10 -10 -9 -------- Run | Yrd Mat Min Mat Total Allies . | . . . . Largest Group . | . . . . Highest-Rated Group . | . . . . Highest-Rated Ally . | . . . . Total Orders . | . . . . Ally Attacks . | . . . . Total Damage . | . . . . Kills . | . . . . Allies Corrupted . | . . . . Allies Melted . | . . . . Intel | -11 -10 -10 -9 ------- Run | Yrd Mat Min Mat Active Infowar (turns) . | . . . . Robot Analysis Total . | . . . . Derelict Logs Recovered . | . . . . Drone Launches . | . . . . Drone Recoveries . | . . . . Exploration | -11 -10 -10 -9 ------------- Run | Yrd Mat Min Mat Turns Passed 794 | 46 242 322 184 Spaces Moved 491 | 37 133 234 87 Core 13 | 13 . . . Treads . | . . . . Legs 478 | 24 133 234 87 Wheels . | . . . . Hover . | . . . . Flight . | . . . . Fastest Speed 50 | 50 120 120 120 Average Speed 118 | 95 120 120 120 Slowest Speed 120 | 120 120 120 120 Overloaded Moves . | . . . . Propulsion Burnouts . | . . . . Robots Hopped . | . . . . Potential Cave-ins . | . . . . Cave-ins Triggered . | . . . . Exploration Rate (%) 24 | 2 26 58 11 Regions Visited 3 Branch Regions 1 Pre-discovered Areas . | . . . . Known Exits Taken . | . . . . Unknown Exits Taken 3 | 1 1 1 . Scrap Searched . | . . . . Spaces Dug . | . . . . Terrain Destroyed . | . . . . Melee . | . . . . Projectile . | . . . . AOE . | . . . . Terrain Rammed . | . . . . Walls Destroyed . | . . . . Machines Disabled . | . . . . Actions | -11 -10 -10 -9 --------- Run | Yrd Mat Min Mat Total 619 | 47 204 250 118 Wait 64 | . 64 . . Move 488 | 36 132 233 87 Hop . | . . . . Pick Up 8 | 5 2 1 . Fast Attach 1 | 1 . . . Attach 7 | 5 . . 2 Detach . | . . . . Swap 1 | . . 1 . Drop 1 | . . 1 . Fire 48 | . 6 14 28 Melee . | . . . . Ram . | . . . . Kick 1 | . . . 1 Crush . | . . . . Escape Stasis . | . . . . Rewire . | . . . . Trap . | . . . . Miscellaneous . | . . . . Route ------- -11/Scrapyard -10/Materials -10/Mines (discovered 2 exits: [*Mat x2]) -9/Materials History --------- Turn | Location | Event 4 | -11/Scrapyard | Discovered new exit (range 16) 47 | -11/Scrapyard | Entered Materials 268 | -10/Materials | Discovered new exit (range 16) 289 | -10/Materials | Entered Mines 314 | -10/Mines | Build established: Mutant 494 | -10/Mines | Discovered new exit (range 12) 542 | -10/Mines | Discovered new exit (range 13) 611 | -10/Mines | Entered Materials 611 | -9/Materials | Evolved 2 slots: Propulsion x1, Weapon x1 794 | -9/Materials | Core integrity fell below 50% 795 | -9/Materials | Self-destructed Last Messages --------------- K-01 Serf collects debris. ALERT: Hostiles spotted, dispatching reinforcements to Terminal M002. Lgt. Assault Rifle destroyed. G-47 Trooper knocked back. Aluminum Leg destroyed. G-34 Mercenary knocked back. G-47 Trooper suffers critical hit (Blast). G-47 Trooper knocked back. G-34 Mercenary knocked back. Assault Rifle destroyed. G-47 Trooper destroyed. Ion Engine destroyed. R-06 Scavenger collects Aluminum Leg. G-34 Mercenary destroyed. Aluminum Leg destroyed. R-06 Scavenger collects Imp. Heat Sink. W-16 Scout sends out distress signal. R-06 Scavenger collects Particle Gun. Lgt. Cannon destroyed. Map ----- +----------------------------------------------------+ | ????????????????????????????????????????????????? | | ????????????????????????????????????????????????? | | ????????????????????????????????????????????????? | | ????????????????????????????????????????????????? | | ????????????????????????????????????????????????? | | ????????????????????????????????????????????????? | | ???????????????????????????????????????????#####? | | ???????????????????????????????????????????# #? | | ???????????????????????????????????????????# #? | | ???????????????????????????????????????????# #? | | ???????????????????????????????????????????# ## | | ??????????????#????????????????????????????# | | ??????????????# ???????????????????????????# | | ??????????????# ???????#???????????????????# | | ??????????????? ??????# """?????########### ## | | ???????????????? ?????# """""???# # #? | | ????????????????? *????# ???# """ """ # #? | | ?????????????????? ????# """"?? ## """ """ # ## | | ??????????????????? ???# """"? ?# """ """ # | | ???????????????????# ??# """"" ??# + | | ???????????????????#% ?? ????# # | | ???????????????????# ####/####### #### | | ???????????????????#% % + #??# | | ???????????????????# % % #################??# | | ???????????????????#####Y#/###????????????????# | | ???????????????????# % @r% #????????????????# | | ???????????????????# """"%Y% #????????????????# | | ???????????????????# ""R" #????????????????# | | ???????????????????# "" "%% #????????????????# | | ???????????????????# #????????????????# | | ???????????????????# #????????????????# | | ???????????????????###########????????????????# | | ??????????????????????????????????????????????+ | | ??????????????????????????????????????????????# | | ??????????????????????????????????????????????? | | ????????????????????????????????????????????????? | | ????????????????????????????????????????????????? | | ????????????????????????????????????????????????? | | ????????????????????????????????????????????????? | | ????????????????????????????????????????????????? | | ????????????????????????????????????????????????? | | ????????????????????????????????????????????????? | | ????????????????????????????????????????????????? | | ????????????????????????????????????????????????? | | ????????????????????????????????????????????????? | | ????????????????????????????????????????????????? | | ????????????????????????????????????????????????? | | ????????????????????????????????????????????????? | | ????????????????????????????????????????????????? | | ????????????????????????????????????????????????? | +----------------------------------------------------+ Best States ------------- Heat Dissipation 28 Energy Generation 10 Energy Capacity 250 Matter Stores 300 Matter Capacity 300 Sight Range 16 Terrain Scan Density 10 Evasion (%) 55 Item Schematics ----------------- None Robot Schematics ------------------ None Fabricated ------------ Nothing Repaired ---------- Nothing Studied --------- None Alien Tech Used ----------------- None Achievements -------------- None Challenges ------------ None Game ------ Seed RapidConstructSuit Manual? 0 Play Time 00:08:43 Cumulative 10.3 hours Start 2025.12.15 @ 23:40:08 End 2025.12.15 @ 23:47:45 Sessions 1 Manual Loads 0 Difficulty Rogue Special Mode None Game No. 32 Rogue 31 Adventurer 0 Explorer 1 Win Type - Total 0 Types 0/0/0/0/0/0/0/0/0/0 Lore% 7 Gallery% 14 Achievement% 8 Wizard Run 0 Options --------- Layout 1 ASCII 0 Keyboard 0 Movement Mouse Keybinds 0 Fullscreen 1 Font 32/SmallcapsGlow Map View 50x35 Zoom Use 0% Tactical HUD 0 Map Filters NONE Filters NONE Steam 1 RUN: f2d0f799-1bed-4c67-96be-3a4d16dcb28d